Cogmind - Beta 14 --- EXPLORER MODE // 2024.10.18 @ 23:48:54 Player: Tekuflat Result: Self-destructed Performance ------------- Evolutions (1) 500 Regions Visited (4) 800 Robots Destroyed (8) 40 Value Destroyed (248) 248 Prototype IDs (23) 460 Alien Tech Used (0) 0 Bonus (300) 300 TOTAL SCORE: 2348 Bonus ------- Aligned with FarCom 300 Cogmind --------- Core Integrity 90/400 Matter 285/300 Energy 525/1600 System Corruption 2% Temperature Warm (107) Movement Walking (120) Location -9/Exiles Parts ------- > --- POWER (1) -------- (None) > --- PROPULSION (3) --- Aluminum Leg Aluminum Leg > --- UTILITY (4) ------ Medium Storage Unit Superbattery > --- WEAPON (2) ------- Small Laser (fused) > --- INVENTORY (10) --- Small Matter Pod (50) Particle Gun Longsword +1 Peak State ------------ > --- POWER ------------ Light Ion Engine > --- PROPULSION ------- Aluminum Leg Aluminum Leg Aluminum Leg > --- UTILITY ---------- Medium Storage Unit Superbattery > --- WEAPON ----------- Small Laser Assault Rifle > --- INVENTORY -------- Small Matter Pod Particle Gun Longsword +1 [Rating: 18] Favorites ----------- Power Light Ion Engine Engine Light Ion Engine Propulsion Aluminum Leg Leg Aluminum Leg Wheel Wheel Flight Unit Flight Unit Utility Light Armor Plating Storage Medium Storage Unit Processor Targeting Computer Protection Light Armor Plating Weapon Assault Rifle Energy Gun Small Laser Ballistic Gun Assault Rifle Build | -11 -10 -9 -9 -9 ------- Run | Yrd Mat Mat Min Exi Slots Evolved 3 | . 1 2 . . Power . | . . . . . Propulsion 1 | . . 1 . . Utility 2 | . 1 1 . . Weapon . | . . . . . Parts Attached 31 | 9 7 5 8 2 Power 3 | 1 . . 2 . Engine 3 | 1 . . 2 . Core . | . . . . . Reactor . | . . . . . Propulsion 13 | 4 4 1 4 . Treads . | . . . . . Leg 7 | 2 2 . 3 . Wheel 3 | 2 . . 1 . Hover . | . . . . . Flight 3 | . 2 1 . . Utility 8 | 2 1 3 . 2 Device . | . . . . . Storage 2 | . . . . 2 Processor 2 | . 1 1 . . Hackware . | . . . . . Protection 4 | 2 . 2 . . Artifact . | . . . . . Weapon 7 | 2 2 1 2 . Energy Gun 1 | . . . 1 . Energy Cannon . | . . . . . Ballistic Gun 6 | 2 2 1 1 . Ballistic Cannon . | . . . . . Launcher . | . . . . . Special Weapon . | . . . . . Impact Weapon . | . . . . . Slashing Weapon . | . . . . . Piercing Weapon . | . . . . . Special Melee Weapon . | . . . . . Unidentified Prototypes . | . . . . . Parts Lost 10 | . . . 7 3 Power 2 | . . . 1 1 Propulsion 4 | . . . 3 1 Utility 3 | . . . 3 . Weapon 1 | . . . . 1 Highest Loss Streak 4 | . . . 4 3 To Critical Strikes 2 | . . . . 2 Average Slot Usage (%) 72 | . 98 88 49 69 Engine 9 | . 12 10 5 10 Leg 20 | . 23 . 5 30 Flight 3 | . 1 28 7 . Storage 4 | . . . . 9 Processor 4 | . 12 18 2 . Protection 8 | . 24 16 8 . Energy Gun 5 | . . . 4 10 Ballistic Gun 14 | . 24 16 13 9 Peak Build Rating 18 | 7 8 12 11 18 Average Rating 7 | 3 7 10 5 8 On Entrance 6 | . 7 7 11 6 Naked Turns . | . . . . . Heaviest Build 20 | 10 10 12 12 20 Greatest Support 30 | 20 20 12 30 30 Greatest Overweight (x) 2 | . 2 . 2 . Average Overweight (x) . | . . . . . Largest Inventory Capacity 10 | 5 5 5 5 10 Average Capacity 6 | 5 5 5 5 9 Most Carried 5 | 5 5 5 5 4 Average Carried 3 | 3 4 3 4 2 Final Capacity 10 | 5 5 5 5 10 Final Carried 4 | 4 4 4 2 3 Class Distribution -------------------- 89% | Hacker-Mutant 10% | Hacker-Sprinter Dominant Class ---------------- Hacker-Mutant | -10/Materials Hacker-Sprinter | -9/Materials Hacker-Mutant | -9/Mines Hacker-Mutant | -9/Exiles Resources | -11 -10 -9 -9 -9 ----------- Run | Yrd Mat Mat Min Exi Matter Collected 604 | 232 152 103 117 . Remotely . | . . . . . Salvage Created 355 | 41 193 57 64 . Parts 22 | 2 16 4 . . Haulers Intercepted . | . . . . . Recyclers Shooed . | . . . . . Parts Field Recycled . | . . . . . Retrieved Matter . | . . . . . Parts Self-Destructed . | . . . . . Prevented . | . . . . . Kills | -11 -10 -9 -9 -9 ------- Run | Yrd Mat Mat Min Exi Combat Hostiles Destroyed 13 | 1 6 1 5 . Guns 13 | 1 6 1 5 . Classes Destroyed 4 | 1 1 1 1 . Swarmer 2 | . 2 . . . Grunt 5 | 1 4 . . . Sentry 1 | . . 1 . . Assembled 5 | . . . 5 . Best Kill Streak 4 | 1 4 1 4 . Combat Bots Only 4 | 1 4 1 4 . Max Kills in Single Turn 1 | 1 1 1 1 . Gunslinging . | . . . . . Exploded . | . . . . . Melee . | . . . . . Uniques/NPCs Destroyed . | . . . . . Combat | -11 -10 -9 -9 -9 -------- Run | Yrd Mat Mat Min Exi Hostile Shots Fired 161 | 6 30 8 72 45 Missed 49 | 3 10 4 16 16 Damage Taken 1113 | 20 147 41 580 325 Core 329 | . 19 9 211 90 Absorbed by Shields . | . . . . . Redirected to Shielding 32 | . 6 . 26 . Ignored by Resistances 676 | 13 97 25 347 194 Core Remaining (%) 96 | 100 92 . . . Volleys Fired 43 | 4 18 5 16 . Largest 2 | 2 2 2 2 . Hottest 60 | 40 40 40 60 . Shots Fired 87 | 8 36 10 32 1 Gun 87 | 8 36 10 32 1 Cannon . | . . . . . Launcher . | . . . . . Special . | . . . . . Kinetic 81 | 8 36 10 27 . Thermal 6 | . . . 5 1 Explosive . | . . . . . Electromagnetic . | . . . . . Robot Hit Streak 14 | 7 14 5 10 . Robot Miss Streak 2 | . 2 1 2 1 Penetration Max . | . . . . . Secondary Targets 2 | . 1 . 1 . Max Gunslinging Chain 1 | . 1 . 1 . Shots Hit Robots 64 | 7 26 7 24 . Core Hits 32 | 4 12 3 13 . Critical Kills . | . . . . . Critical Parts Destroyed 1 | . . . 1 . Critical Strikes 1 | . . . 1 . Destroy 1 | . . . 1 . Melee Attacks . | . . . . . Impact . | . . . . . Slashing . | . . . . . Piercing . | . . . . . Sneak Attacks . | . . . . . Combat Hostiles . | . . . . . Follow-up Attacks . | . . . . . Damage Inflicted 642 | 76 282 56 228 . Guns 633 | 74 275 56 228 . Cannons . | . . . . . Explosions . | . . . . . Melee . | . . . . . Ramming 9 | 2 7 . . . Kinetic 590 | 74 275 56 185 . Thermal 43 | . . . 43 . Explosive . | . . . . . Electromagnetic . | . . . . . Impact . | . . . . . Slashing . | . . . . . Piercing . | . . . . . Highest Corruption 2 | . . . 2 2 Average Corruption 2 | . . . 2 2 Corruption Purged . | . . . . . Corruption Blocked . | . . . . . Effects 9 | . . . 1 8 Message Errors 1 | . . . . 1 Matter Fused 1 | . . . . 1 Heat Flow Errors 3 | . . . . 3 Energy Discharges 2 | . . . . 2 Parts Fused 1 | . . . 1 . Misfires 1 | . . . . 1 Overload Shots . | . . . . . Overflow Damage . | . . . . . Projectiles . | . . . . . Explosions . | . . . . . Melee . | . . . . . Knockbacks . | . . . . . Impact . | . . . . . Kinetic . | . . . . . Secondary . | . . . . . Self-Inflicted Damage 1 | . 1 . . . Shots . | . . . . . Rammed 1 | . 1 . . . Targets Rammed 4 | 1 3 . . . Kicked 3 | 1 2 . . . Crushed . | . . . . . Highest Temperature 214 | 6 18 18 181 214 Average Temperature 47 | 6 6 7 66 104 Received Heat Transfer 598 | 18 111 9 460 . Siege Activations . | . . . . . Robots Corrupted . | . . . . . Combat Hostiles . | . . . . . Parts Fried . | . . . . . Impact Corruptions . | . . . . . Robots Melted . | . . . . . Combat Hostiles . | . . . . . Parts Melted . | . . . . . Heat Transferred 100 | . . . 100 . Parts Sabotaged . | . . . . . Parts Stolen . | . . . . . Parts Stripped . | . . . . . Power Chain Reactions . | . . . . . Alert | -11 -10 -9 -9 -9 ------- Run | Yrd Mat Mat Min Exi Peak Influence 179 | 20 179 103 28 . Initial 58 | . 9 58 28 . Average 43 | 4 90 69 6 . Maximum Alert Level . | . . . . . Low Security (%) 100 | 100 100 100 100 . Level 1 . | . . . . . Level 2 . | . . . . . Level 3 . | . . . . . Level 4 . | . . . . . Level 5 . | . . . . . High Security . | . . . . . Max Security . | . . . . . Squads Dispatched . | . . . . . Investigation . | . . . . . Extermination . | . . . . . Reinforcement . | . . . . . Assault . | . . . . . Garrison . | . . . . . Intercept . | . . . . . Searches Triggered . | . . . . . Construction Impeded . | . . . . . Haulers Reinforced . | . . . . . Active Scanning Responses . | . . . . . Cargo Convoy Interrupts . | . . . . . Stealth | -11 -10 -9 -9 -9 --------- Run | Yrd Mat Mat Min Exi Distress Signals 1 | . 1 . . . Communications Jammed . | . . . . . Distress Signals . | . . . . . Times Spotted 43 | 1 10 1 23 8 Peak Tracking Total 20 | 1 4 2 20 9 Tactical Retreats 3 | . . . 3 . Traps | -11 -10 -9 -9 -9 ------- Run | Yrd Mat Mat Min Exi Traps Triggered 2 | . 2 . . . Indirectly . | . . . . . Trap Hack Attempts . | . . . . . Triggered . | . . . . . Disarmed . | . . . . . Reprogrammed . | . . . . . Reused . | . . . . . Traps Extracted . | . . . . . Installed . | . . . . . Triggered . | . . . . . Most Traps Carried 1 | . . . 1 . Machines | -11 -10 -9 -9 -9 ---------- Run | Yrd Mat Mat Min Exi Machines Disabled . | . . . . . Max in Single Turn . | . . . . . Machines Repaired . | . . . . . Machines Dismantled . | . . . . . Machines Sabotaged . | . . . . . Overloaded Fab Kills . | . . . . . Hacking | -11 -10 -9 -9 -9 --------- Run | Yrd Mat Mat Min Exi Machines Accessed 8 | . 3 . . 5 Terminals 3 | . 3 . . . Fabricators . | . . . . . Repair Stations . | . . . . . Recycling Units . | . . . . . Scanalyzers . | . . . . . Garrison Access . | . . . . . Total Hacks 55 | . 5 . . 50 Successful 55 | . 5 . . 50 Failed . | . . . . . Catastrophic . | . . . . . Database Lockouts . | . . . . . Manual 2 | . . . . 2 Terminals 5 | . 5 . . . Fabricators . | . . . . . Repair Stations . | . . . . . Recycling Units . | . . . . . Scanalyzers . | . . . . . Garrison Access . | . . . . . Terminal Hacks 55 | . 5 . . 50 Record 53 | . 4 . . 49 Alert Level 1 | . 1 . . . Derelict Proto ID Bank 1 | . . . . 1 Fabricator Hacks . | . . . . . Repair Station Hacks . | . . . . . Recycling Unit Hacks . | . . . . . Scanalyzer . | . . . . . Garrison Access Hacks . | . . . . . Unauthorized Hacks . | . . . . . Terminals . | . . . . . Fabricators . | . . . . . Repair Stations . | . . . . . Recycling Units . | . . . . . Scanalyzers . | . . . . . Garrison Access . | . . . . . Data Cores Recovered . | . . . . . Used . | . . . . . Hacking Detections 1 | . 1 . . . Full Trace Events . | . . . . . Feedback Events . | . . . . . Feedback Blocked . | . . . . . Robot Schematics Acquired . | . . . . . Robots Built . | . . . . . Authchips . | . . . . . Time . | . . . . . Total Robot Build Rating . | . . . . . Part Schematics Acquired . | . . . . . Parts Built . | . . . . . Authchips . | . . . . . Time . | . . . . . Total Part Build Rating . | . . . . . Parts Repaired . | . . . . . Time . | . . . . . Parts Recycled . | . . . . . Recycled Matter . | . . . . . Retrieved Matter . | . . . . . Retrieved Components . | . . . . . Parts Scanalyzed . | . . . . . Part Schematics Acquired . | . . . . . Parts Damaged . | . . . . . Bothacking | -11 -10 -9 -9 -9 ------------ Run | Yrd Mat Mat Min Exi Used RIF Installer . | . . . . . Robots Hacked . | . . . . . Non-combat . | . . . . . Combat . | . . . . . Robot Hacks Applied . | . . . . . Relay Couplers Released . | . . . . . Fabnet Peak Effective % . | . . . . . Robots Rewired . | . . . . . Allies Hacked . | . . . . . Hacks Repelled . | . . . . . Allies | -11 -10 -9 -9 -9 -------- Run | Yrd Mat Mat Min Exi Total Allies 3 | . . . 3 . Largest Group 3 | . . . 3 . Highest-Rated Group 40 | . . . 40 . Highest-Rated Ally 16 | . . . 16 . Total Orders . | . . . . . Ally Attacks 23 | . . . 23 . Total Damage 199 | . . . 199 . Kills 2 | . . . 2 . Allies Corrupted . | . . . . . Allies Melted . | . . . . . Intel | -11 -10 -9 -9 -9 ------- Run | Yrd Mat Mat Min Exi Robot Analysis Total . | . . . . . Derelict Logs Recovered . | . . . . . Drone Launches . | . . . . . Drone Recoveries . | . . . . . Exploration | -11 -10 -9 -9 -9 ------------- Run | Yrd Mat Mat Min Exi Turns Passed 1348 | 103 312 48 320 565 Spaces Moved 1149 | 73 200 77 333 466 Core 99 | 25 . . 74 . Treads . | . . . . . Legs 766 | 43 184 . 73 466 Wheels 37 | 5 . . 32 . Hover . | . . . . . Flight 247 | . 16 77 154 . Fastest Speed 32 | 50 117 32 32 120 Average Speed 99 | 93 120 33 73 120 Slowest Speed 200 | 120 200 37 200 120 Overloaded Moves . | . . . . . Propulsion Burnouts . | . . . . . Robots Hopped 3 | . . . 3 . Cave-ins Triggered . | . . . . . Exploration Rate (%) 39 | 6 37 11 59 84 Regions Visited 4 Branch Regions 2 Pre-discovered Areas 1 | . . . . 1 Known Exits Taken 4 | 1 1 1 1 . Unknown Exits Taken . | . . . . . Scrap Searched 1 | . . . 1 . Spaces Dug . | . . . . . Terrain Destroyed . | . . . . . Melee . | . . . . . Projectile . | . . . . . AOE . | . . . . . Terrain Rammed . | . . . . . Walls Destroyed . | . . . . . Machines Disabled . | . . . . . Actions | -11 -10 -9 -9 -9 --------- Run | Yrd Mat Mat Min Exi Total 1274 | 100 238 89 376 471 Wait 14 | . 1 . 13 . Move 1140 | 72 199 76 327 466 Hop 2 | . . . 2 . Pick Up 24 | 12 4 2 3 3 Fast Attach 13 | 1 6 2 4 . Attach 13 | 6 1 2 2 2 Detach 1 | . . 1 . . Swap 5 | 2 . 1 2 . Drop 13 | 2 6 . 5 . Fire 43 | 4 18 5 16 . Melee . | . . . . . Ram 1 | . 1 . . . Kick 3 | 1 2 . . . Crush . | . . . . . Escape Stasis . | . . . . . Rewire 2 | . . . 2 . Trap . | . . . . . Miscellaneous . | . . . . . Route ------- -11/Scrapyard -10/Materials -9/Materials -9/Mines (discovered 2 exits: *Mat / *Exi) -9/Exiles History --------- Turn | Location | Event 2 | -11/Scrapyard | Met Revision 17 66 | -11/Scrapyard | Identified exit to Materials 66 | -11/Scrapyard | Discovered exit to Materials (range 8) 104 | -11/Scrapyard | Entered Materials 104 | -10/Materials | Evolved 1 slot: Utility x1 286 | -10/Materials | Identified exit to Materials 286 | -10/Materials | Discovered exit to Materials (range 7) 315 | -10/Materials | Build established: Hacker-Mutant 416 | -10/Materials | Entered another Materials area 416 | -9/Materials | Evolved 2 slots: Propulsion x1, Utility x1 444 | -9/Materials | Identified exit to Mines 444 | -9/Materials | Discovered exit to Mines (range 4) 464 | -9/Materials | Entered Mines 476 | -9/Mines | Found a hidden stash of uninstalled traps 481 | -9/Mines | Assembled infested the area 496 | -9/Mines | Assisted by bots powering up and referring to "LRC-V3" 575 | -9/Mines | Lost 4 parts (2n2u) 636 | -9/Mines | Core integrity fell below 50% 651 | -9/Mines | Lost 3 parts (1p1n1u) 749 | -9/Mines | Identified exit to Exiles 749 | -9/Mines | Discovered exit to Exiles (range 13) 752 | -9/Mines | Identified exit to Materials 752 | -9/Mines | Discovered exit to Materials (range 16) 784 | -9/Mines | Entered Exiles 817 | -9/Exiles | Met 8R-AWN 834 | -9/Exiles | Met EX-HEX 892 | -9/Exiles | Met EX-DEC 917 | -9/Exiles | Visited The Gauntlet 1072 | -9/Exiles | Learned location of Zion (-7) 1115 | -9/Exiles | Met EX-BIN 1138 | -9/Exiles | Aligned with FarCom system 1139 | -9/Exiles | Given EX-Vault access code 1194 | -9/Exiles | Opened EX-Vault 1205 | -9/Exiles | Found Prototype Slashing Weapon 1233 | -9/Exiles | Warned to stay clear of 0b10 Research branches 1258 | -9/Exiles | Identified Longsword +1 1265 | -9/Exiles | Found Superbattery 1329 | -9/Exiles | Attacked by the Exiles 1349 | -9/Exiles | Self-destructed Last Messages --------------- 01339_ HV Slug penetrates Machine. 01339_ Machine disabled. 01339_ HV Slug penetrates Wall. 01339_ Penetrated by HV Slug. 01340_ as-67351 suffers critical hit (Destroy). 01340_ as-67351 destroyed. 01342_ Penetrated by HV Slug. 01342_ HV Slug penetrates Wall. 01342_ Penetrated by HV Slug. 01342_ HV Slug penetrates Wall. 01343_ Wall collapses. 01344_ HV Slug penetrates Wall. 01344_ Penetrated by HV Slug. 01344_ Critical hit (Destroy). 01344_ Aluminum Leg destroyed. 01344_ HV Slug penetrates Machine. 01344_ Machine disabled. 01346_ System corrupted: Heat flow error (+182). 01347_ Lgt. Ion Engine destroyed. 01347_ Penetrated by HV Slug. Map ----- +----------------------------------------------------+ | """#??????????????????????????????????????????? | | """#??????????????????????????????????????????? | | """#??????????????????????????????????????????? | | """#??????????????????????????????????????????? | | """##?????????????????????????????????????????? | | """""?????????????????????????????????????????? | | """##?????????????????????????????????????????? | | X" """""?????????????????????????????????????????? | | "" # ?????????????????????????????????????????? | | """"""#??????????????????????????????????????????? | | #######??????????????????????????????????????????? | | ?????????????????????????????????????????????????? | | ?????????????????????????????????????????????????? | | ?????????????????????????????????????????????????? | | ??##########????????????????????????????????????? | | ###"""""""""##??????????????????????????????????? | | " """ """"##?????????????????????????????????# | | "" " #???????????????????????????????## | | " """#???????????????????????????????# | | " "#???????????#####???????????????# | | " "##?????????##" #??????????????## | | ""###???????#" #?????????????## | | """#??????##" ##????????????# | | "#????### ###????????### | | % ##???# ########## | | " ##?## @ #""""## # | | "" ###g * # | | % aa #; * | | " #### | | ""#?#"""""#### | | #"" ##?#######??#### * | | ######??????????????##### | | ##???????????????????????### | | " aa ##??????????????????????????### | | """ ""#?????????????????????????????## | | " " ""#" "##??????????????????????????????# | | """ """##""" """##???????????????????????????????# | | ##""""#####"#####????????????????????????????????? | | ?######??? ??????????????????????????????????????? | | ????????? ???????????????????????????????????????? | | ?????????????????????????????????????????????????? | | ?????????????????????????????????????????????????? | | ?????????????????????????????????????????????????? | | ?????????????????????????????????????????????????? | | ?????????????????????????????????????????????????? | | ?????????????????????????????????????????????????? | | ?????????????????????????????????????????????????? | | ?????????????????????????????????????????????????? | | ?????????????????????????????????????????????????? | | ?????????????????????????????????????????????????? | +----------------------------------------------------+ Best States ------------- Heat Dissipation 28 Energy Generation 12 Energy Capacity 1625 Matter Stores 300 Matter Capacity 300 Sight Range 18 Terrain Scan Density 10 Armor Coverage 300 Resistance: KI 35 Resistance: TH 35 Resistance: EX 35 Resistance: EM 35 Resistance: I 35 Resistance: S 35 Resistance: P 35 Power Shielding 33 Propulsion Shielding 33 Evasion (%) 63 Targeting Accuracy 5 Offensive Hacking 20 Item Schematics ----------------- None Robot Schematics ------------------ None Fabricated ------------ Nothing Alien Tech Used ----------------- None Achievements -------------- Hunted Challenges ------------ None Game ------ Seed TerrainLatentMonowheel Manual? 0 Play Time 00:25:52 Cumulative 2.6 hours Start 2024.10.18 @ 23:20:42 End 2024.10.18 @ 23:48:54 Sessions 1 Manual Loads 0 Difficulty Explorer Special Mode None Game No. 2 Rogue 0 Adventurer 0 Explorer 2 Win Type - Total 0 Types 0/0/0/0/0/0/0/0/0 Lore% 7 Gallery% 6 Achievement% 18 Wizard Run 0 Options --------- Layout 0 ASCII 0 Keyboard 0 Movement Numpad Keybinds 0 Fullscreen 1 Font 24/Tamsyn Map View 76x50 Zoom Use 0% Tactical HUD 1 Map Filters NONE Filters NONE Steam 1 RUN: 1526896d-9693-4ea8-bae8-813c6e96dbff